fUST/lending_fUST_20250530
["ID","MTS","AMOUNT","RATE_DAILY","PERIOD"]
[362956451,1748534418240,150.0,0.00014718,2]
[362956452,1748534730093,-173.77628079,0.00018406,2]
[362956453,1748534836101,-372.56885737,0.00018222,2]
[362956454,1748534853107,-2279.0778446,0.00018222,2]
[362956457,1748534945110,-2348.35329803,0.00018222,2]
[362956458,1748534945138,-9.32401121,0.00018406,2]
[362956459,1748534945160,-161.06732062,0.00018602,2]
[362956460,1748534945183,-221.91480261,0.000189,2]
[362956461,1748534945205,-31.11143582,0.00019078,2]
[362956462,1748534946153,-127.7425427,0.00019078,2]
[362956463,1748534946176,-156.587,0.00019166,2]
[362956464,1748534946361,-367.12208631,0.00019173,2]
[362956465,1748534946383,-500.0,0.00019173,2]
[362956466,1748534946405,-500.3368205,0.00019173,2]
[362956467,1748534946427,-300.0,0.00019175,2]
[362956468,1748534946448,-300.0,0.00019176,2]
[362956469,1748534946470,-1200.0,0.00019176,2]
[362956470,1748534946491,-7881.23096349,0.00019177,2]
[362956471,1748534946512,-500.79438565,0.00019177,2]
[362956472,1748534946536,-500.0,0.00019177,2]
[362956473,1748534946558,-500.0,0.00019177,2]
[362956474,1748534946580,-500.0,0.00019177,2]
[362956475,1748534946601,-357.67549001,0.00019177,2]
[362956476,1748534946623,-500.0,0.00019177,2]
[362956477,1748534946645,-580.02577633,0.00019177,2]
[362956478,1748534946670,-500.0,0.00019177,2]
[362956479,1748534946692,-507.05267097,0.00019177,2]
[362956480,1748534946714,-392.33304491,0.00019177,2]
[362956481,1748534946735,-500.0,0.00019177,2]
[362956482,1748534946757,-417.93401397,0.00019178,2]
[362956483,1748534946780,-430.0,0.00019178,2]
[362956484,1748534946801,-430.0,0.00019178,2]
[362956485,1748534946823,-430.0,0.00019178,2]
[362956486,1748534946845,-439.84,0.00019178,2]
[362956487,1748534946866,-214.45790829,0.00019178,2]
[362956488,1748534946887,-430.0,0.00019178,2]
[362956489,1748534946908,-430.0,0.00019178,2]
[362956490,1748534946928,-430.0,0.00019178,2]
[362956491,1748534946950,-430.0,0.00019178,2]
[362956492,1748534946973,-454.66749446,0.00019178,2]
[362956493,1748534946994,-430.0,0.00019178,2]
[362956494,1748534947015,-430.0,0.00019178,2]
[362956495,1748534947038,-430.0,0.00019178,2]
[362956496,1748534947060,-430.0,0.00019178,2]
[362956497,1748534947082,-537.15727597,0.00019178,2]
[362956498,1748534947103,-430.0,0.00019178,2]
[362956499,1748534947125,-430.0,0.00019178,2]
[362956500,1748534947145,-430.0,0.00019178,2]
[362956501,1748534947166,-400.0,0.00019178,2]
[362956502,1748534947186,-240.90874238,0.00019178,2]
[362956503,1748534947207,-445.04816638,0.00019178,2]
[362956504,1748534947228,-400.0,0.00019178,2]
[362956505,1748534947250,-430.0,0.00019178,2]
[362956506,1748534947271,-400.0,0.00019178,2]
[362956507,1748534947294,-430.0,0.00019178,2]
[362956508,1748534947315,-500.0,0.00019178,2]
[362956509,1748534947338,-430.0,0.00019178,2]
[362956510,1748534947360,-500.0,0.00019178,2]
[362956511,1748534947381,-493.92428637,0.00019178,2]
[362956512,1748534947402,-430.0,0.00019178,2]
[362956513,1748534947424,-430.0,0.00019178,2]
[362956514,1748534947445,-430.0,0.00019178,2]
[362956515,1748534947465,-500.0,0.00019178,2]
[362956516,1748534947486,-430.0,0.00019178,2]
[362956517,1748534947507,-430.0,0.00019178,2]
[362956518,1748534947529,-400.0,0.00019178,2]
[362956519,1748534947550,-430.0,0.00019178,2]
[362956520,1748534947571,-430.0,0.00019178,2]
[362956521,1748534947593,-430.0,0.00019178,2]
[362956522,1748534947613,-400.0,0.00019178,2]
[362956523,1748534947634,-400.0,0.00019178,2]
[362956524,1748534947655,-400.0,0.00019178,2]
[362956525,1748534947678,-430.0,0.00019178,2]
[362956526,1748534947698,-500.0,0.00019178,2]
[362956527,1748534947720,-430.0,0.00019178,2]
[362956528,1748534947742,-430.0,0.00019178,2]
[362956529,1748534947762,-510.03668428,0.00019178,2]
[362956530,1748534947783,-500.47142295,0.00019178,2]
[362956531,1748534947817,-400.0,0.00019178,2]
[362956532,1748534947839,-430.0,0.00019178,2]
[362956533,1748534947861,-430.0,0.00019178,2]
[362956534,1748534947882,-504.09797591,0.00019178,2]
[362956535,1748534947903,-400.0,0.00019178,2]
[362956536,1748534947924,-430.0,0.00019178,2]
[362956537,1748534947946,-400.0,0.00019178,2]
[362956538,1748534947967,-400.0,0.00019178,2]
[362956539,1748534947988,-400.0,0.00019178,2]
[362956540,1748534948010,-500.0,0.00019178,2]
[362956541,1748534948033,-400.0,0.00019178,2]
[362956542,1748534948054,-400.0,0.00019178,2]
[362956543,1748534948075,-400.0,0.00019178,2]
[362956544,1748534948097,-400.0,0.00019178,2]
[362956545,1748534948119,-1000.0,0.00019178,2]
[362956546,1748534948142,-400.0,0.00019178,2]
[362956547,1748534948164,-400.0,0.00019178,2]
[362956548,1748534948186,-500.0,0.00019178,2]
[362956549,1748534948207,-400.0,0.00019178,2]
[362956550,1748534948229,-500.0,0.00019178,2]
[362956551,1748534948252,-508.37697616,0.00019178,2]
[362956552,1748534948273,-501.65230332,0.00019178,2]
[362956553,1748534948296,-500.0,0.00019178,2]
[362956554,1748534948318,-443.09,0.00019178,2]
[362956555,1748534948341,-500.0,0.00019178,2]
[362956556,1748534948364,-430.0,0.00019178,2]
[362956557,1748534948387,-500.0,0.00019178,2]
[362956558,1748534948408,-521.20082069,0.00019178,2]
[362956559,1748534948430,-500.0,0.00019178,2]
[362956560,1748534948451,-400.0,0.00019178,2]
[362956561,1748534948473,-502.96567269,0.00019178,2]
[362956562,1748534948501,-400.0,0.00019178,2]
[362956563,1748534948524,-430.0,0.00019178,2]
[362956564,1748534948548,-430.0,0.00019178,2]
[362956565,1748534948570,-430.0,0.00019178,2]
[362956566,1748534948593,-430.0,0.00019178,2]
[362956567,1748534948615,-442.38670019,0.00019178,2]
[362956568,1748534948638,-400.0,0.00019178,2]
[362956569,1748534948662,-500.0,0.00019178,2]
[362956570,1748534948685,-400.0,0.00019178,2]
[362956571,1748534948708,-500.0,0.00019178,2]
[362956572,1748534948731,-23.83171504,0.00019178,2]
[362956573,1748534958115,-406.16828496,0.00019178,2]
[362956574,1748534958139,-430.0,0.00019178,2]
[362956575,1748534958161,-526.70631053,0.00019178,2]
[362956576,1748534958184,-481.20205262,0.00019178,2]
[362956577,1748534958207,-430.0,0.00019178,2]
[362956578,1748534958229,-500.0,0.00019178,2]
[362956579,1748534958252,-430.0,0.00019178,2]
[362956580,1748534958276,-430.0,0.00019178,2]
[362956581,1748534958302,-490.90615479,0.00019178,2]
[362956582,1748534958325,-430.0,0.00019178,2]
[362956583,1748534958347,-430.0,0.00019178,2]
[362956584,1748534958371,-430.0,0.00019178,2]
[362956585,1748534958394,-500.0,0.00019178,2]
[362956586,1748534958418,-430.0,0.00019178,2]
[362956587,1748534958580,-430.0,0.00019178,2]
[362956588,1748534958608,-500.0,0.00019178,2]
[362956589,1748534958632,-430.0,0.00019178,2]
[362956590,1748534958660,-500.0,0.00019178,2]
[362956591,1748534958686,-500.0,0.00019178,2]
[362956592,1748534958711,-500.0,0.00019178,2]
[362956593,1748534958735,-500.0,0.00019178,2]
[362956594,1748534958761,-500.0,0.00019178,2]
[362956595,1748534958788,-430.0,0.00019178,2]
[362956596,1748534958813,-400.0,0.00019178,2]
[362956597,1748534958837,-430.0,0.00019178,2]
[362956598,1748534958860,-430.0,0.00019178,2]
[362956599,1748534958883,-430.0,0.00019178,2]
[362956600,1748534958907,-430.0,0.00019178,2]
[362956601,1748534958929,-430.0,0.00019178,2]
[362956602,1748534958951,-430.0,0.00019178,2]
[362956603,1748534958973,-517.30722969,0.00019178,2]
[362956604,1748534958995,-430.0,0.00019178,2]
[362956605,1748534959015,-380.68203814,0.00019178,2]
[362956606,1748534959041,-500.0,0.00019178,2]
[362956607,1748534959063,-500.0,0.00019178,2]
[362956608,1748534959086,-500.0,0.00019178,2]
[362956609,1748534959108,-500.0,0.00019178,2]
[362956610,1748534959129,-500.0,0.00019178,2]
[362956611,1748534959152,-430.0,0.00019178,2]
[362956612,1748534959174,-430.0,0.00019178,2]
[362956613,1748534959195,-316.10386178,0.00019178,2]
[362956614,1748534959217,-420.05256039,0.00019178,2]
[362956615,1748534959239,-501.74,0.00019178,2]
[362956616,1748534959260,-430.0,0.00019178,2]
[362956617,1748534959282,-518.0,0.00019178,2]
[362956618,1748534959307,-501.28122029,0.00019178,2]
[362956619,1748534959328,-210.77298054,0.00019178,2]
[362956620,1748534959348,-430.0,0.00019178,2]
[362956621,1748534959371,-430.54931385,0.00019178,2]
[362956622,1748534959394,-430.0,0.00019178,2]
[362956623,1748534959414,-430.0,0.00019178,2]
[362956624,1748534959436,-430.0,0.00019178,2]
[362956625,1748534959459,-400.0,0.00019178,2]
[362956626,1748534959480,-430.0,0.00019178,2]
[362956627,1748534959502,-430.0,0.00019178,2]
[362956628,1748534959523,-430.0,0.00019178,2]
[362956629,1748534959548,-400.0,0.00019178,2]
[362956630,1748534959568,-430.0,0.00019178,2]
[362956631,1748534959589,-400.0,0.00019178,2]
[362956632,1748534959609,-430.0,0.00019178,2]
[362956633,1748534959631,-400.0,0.00019178,2]
[362956634,1748534959652,-430.0,0.00019178,2]
[362956635,1748534959676,-400.0,0.00019178,2]
[362956636,1748534959698,-255.26730144,0.00019178,2]
[362956637,1748534959722,-430.0,0.00019178,2]
[362956638,1748534959746,-280.0,0.00019178,2]
[362956639,1748534959767,-430.0,0.00019178,2]
[362956640,1748534959790,-430.0,0.00019178,2]
[362956641,1748534959811,-430.0,0.00019178,2]
[362956642,1748534959835,-430.0,0.00019178,2]
[362956643,1748534959857,-430.0,0.00019178,2]
[362956644,1748534959878,-400.0,0.00019178,2]
[362956645,1748534959899,-400.0,0.00019178,2]
[362956646,1748534959921,-400.0,0.00019178,2]
[362956647,1748534959942,-430.0,0.00019178,2]
[362956648,1748534959963,-430.0,0.00019178,2]
[362956649,1748534959985,-430.0,0.00019178,2]
[362956650,1748534960006,-165.08031277,0.00019178,2]
[362956651,1748534960027,-409.84358086,0.00019178,2]
[362956652,1748534960050,-430.0,0.00019178,2]
[362956653,1748534960071,-430.0,0.00019178,2]
[362956654,1748534960093,-430.0,0.00019178,2]
[362956655,1748534960114,-430.0,0.00019178,2]
[362956656,1748534960135,-479.72210351,0.00019178,2]
[362956657,1748534960157,-430.0,0.00019178,2]
[362956658,1748534960178,-430.0,0.00019178,2]
[362956659,1748534960200,-430.0,0.00019178,2]
[362956660,1748534960221,-430.0,0.00019178,2]
[362956661,1748534960242,-430.0,0.00019178,2]
[362956662,1748534960264,-432.12,0.00019178,2]
[362956663,1748534960286,-506.44,0.00019178,2]
[362956664,1748534960308,-430.0,0.00019178,2]
[362956665,1748534960332,-430.0,0.00019178,2]
[362956666,1748534960355,-430.0,0.00019178,2]
[362956667,1748534960377,-312.66794337,0.00019178,2]
[362956668,1748534960400,-430.0,0.00019178,2]
[362956669,1748534960421,-430.0,0.00019178,2]
[362956670,1748534960444,-430.0,0.00019178,2]
[362956671,1748534960468,-430.0,0.00019178,2]
[362956672,1748534960489,-430.0,0.00019178,2]
[362956673,1748534960510,-540.21867292,0.00019178,2]
[362956674,1748534960532,-430.0,0.00019178,2]
[362956675,1748534960555,-500.0,0.00019178,2]
[362956676,1748534960581,-430.0,0.00019178,2]
[362956677,1748534960603,-430.0,0.00019178,2]
[362956678,1748534960625,-430.0,0.00019178,2]
[362956679,1748534960646,-430.0,0.00019178,2]
[362956680,1748534960671,-430.0,0.00019178,2]
[362956681,1748534960692,-430.0,0.00019178,2]
[362956682,1748534960714,-430.0,0.00019178,2]
[362956683,1748534960735,-430.0,0.00019178,2]
[362956684,1748534960759,-262.67361438,0.00019178,2]
[362956685,1748534960779,-430.0,0.00019178,2]
[362956686,1748534960805,-280.0,0.00019178,2]
[362956687,1748534960825,-283.38210597,0.00019178,2]
[362956688,1748534960846,-430.0,0.00019178,2]
[362956689,1748534960867,-430.0,0.00019178,2]
[362956690,1748534960889,-430.0,0.00019178,2]
[362956691,1748534960911,-430.0,0.00019178,2]
[362956692,1748534960932,-430.0,0.00019178,2]
[362956693,1748534960954,-430.0,0.00019178,2]
[362956694,1748534960976,-430.0,0.00019178,2]
[362956695,1748534960997,-430.0,0.00019178,2]
[362956696,1748534961017,-430.0,0.00019178,2]
[362956697,1748534961039,-510.65615027,0.00019178,2]
[362956698,1748534961060,-430.0,0.00019178,2]
[362956699,1748534961081,-430.0,0.00019178,2]
[362956700,1748534961103,-430.0,0.00019178,2]
[362956701,1748534961125,-430.0,0.00019178,2]
[362956702,1748534961147,-430.0,0.00019178,2]
[362956703,1748534961169,-430.0,0.00019178,2]
[362956704,1748534961191,-430.0,0.00019178,2]
[362956705,1748534961213,-430.0,0.00019178,2]
[362956706,1748534961234,-430.0,0.00019178,2]
[362956707,1748534961255,-430.0,0.00019178,2]
[362956708,1748534961275,-430.0,0.00019178,2]
[362956709,1748534961298,-430.0,0.00019178,2]
[362956710,1748534961320,-430.0,0.00019178,2]
[362956711,1748534961342,-430.0,0.00019178,2]
[362956712,1748534961366,-426.87336436,0.00019178,2]
[362956713,1748534961388,-430.0,0.00019178,2]
[362956714,1748534961410,-430.0,0.00019178,2]
[362956715,1748534961432,-430.0,0.00019178,2]
[362956716,1748534961453,-487.40957127,0.00019178,2]
[362956717,1748534961475,-505.32201511,0.00019178,2]
[362956718,1748534961496,-430.0,0.00019178,2]
[362956719,1748534961518,-179.551734,0.00019178,2]
[362956720,1748534961541,-162.380719,0.00019221,2]
[362956721,1748534961562,-168.3888056,0.00019276,2]
[362956722,1748534961583,-174.61919141,0.00019331,2]
[362956723,1748534961603,-294.91963882,0.00019386,2]
[362956724,1748534961625,-500.0,0.00019451,2]
[362956725,1748534961647,-500.0,0.00019451,2]
[362956726,1748534961672,-500.0,0.00019451,2]
[362956727,1748534961693,-500.0,0.00019451,2]
[362956728,1748534961717,-500.0,0.00019451,2]
[362956729,1748534961741,-800.11321005,0.00019451,2]
[362956730,1748534961871,-500.0,0.00019451,2]
[362956731,1748534961893,-171.08773537,0.00019451,2]
[362956732,1748534961916,-800.11321005,0.00019451,2]
[362956733,1748534961940,-800.11321005,0.00019451,2]
[362956734,1748534961964,-281.08274707,0.00019451,2]
[362956735,1748534963143,-519.03046298,0.00019451,2]
[362956736,1748534963167,-500.0,0.00019451,2]
[362956737,1748534963188,-583.04924125,0.00019451,2]
[362956738,1748534963211,-500.0,0.00019451,2]
[362956739,1748534963233,-500.0,0.00019451,2]
[362956740,1748534963257,-800.11321005,0.00019451,2]
[362956741,1748534963279,-500.0,0.00019451,2]
[362956742,1748534963303,-499.71214582,0.00019451,2]
[362956743,1748534963326,-800.11321005,0.00019451,2]
[362956744,1748534963350,-800.11321005,0.00019451,2]
[362956745,1748534963374,-589.31387917,0.00019451,2]
[362956746,1748534964188,-210.79933088,0.00019451,2]
[362956747,1748534964211,-500.0,0.00019451,2]
[362956748,1748534964235,-800.11321005,0.00019451,2]
[362956749,1748534964260,-800.11321005,0.00019451,2]
[362956750,1748534964284,-800.11321005,0.00019451,2]
[362956751,1748534964310,-800.11321005,0.00019451,2]
[362956752,1748534964333,-832.11773846,0.00019451,2]
[362956753,1748534964356,-300.0,0.00019451,2]
[362956754,1748534964380,-832.11773846,0.00019451,2]
[362956755,1748534964404,-832.11773846,0.00019451,2]
[362956756,1748534964427,-832.11773846,0.00019451,2]
[362956757,1748534964450,-832.11773846,0.00019451,2]
[362956758,1748534964473,-832.11773846,0.00019451,2]
[362956759,1748534964496,-832.11773846,0.00019451,2]
[362956760,1748534964520,-923.20089632,0.00019451,2]
[362956761,1748534964546,-923.20089632,0.00019451,2]
[362956762,1748534964569,-923.20089632,0.00019451,2]
[362956763,1748534964593,-923.20089632,0.00019451,2]
[362956764,1748534964616,-923.20089632,0.00019451,2]
[362956765,1748534964640,-1189.29997818,0.00019451,2]
[362956766,1748534964662,-328.18,0.00019452,2]
[362956767,1748534964684,-414.69712963,0.00019452,2]
[362956768,1748534964707,-430.0,0.00019452,2]
[362956769,1748534964731,-430.0,0.00019452,2]
[362956770,1748534964757,-430.0,0.00019452,2]
[362956771,1748534964779,-430.0,0.00019452,2]
[362956772,1748534964803,-174.39,0.00019452,2]
[362956773,1748534964830,-430.0,0.00019452,2]
[362956774,1748534964853,-430.0,0.00019452,2]
[362956775,1748534964876,-500.0,0.00019723,2]
[362956776,1748534964897,-179.03081135,0.00019723,2]
[362956777,1748534964920,-500.0,0.00019724,2]
[362956778,1748534964944,-430.0,0.00019725,2]
[362956779,1748534964967,-430.0,0.00019725,2]
[362956780,1748534964994,-430.0,0.00019725,2]
[362956781,1748534965018,-430.0,0.00019725,2]
[362956782,1748534965040,-430.0,0.00019725,2]
[362956783,1748534965062,-430.0,0.00019725,2]
[362956784,1748534965083,-503.9,0.00019725,2]
[362956785,1748534965109,-2443.44,0.00019725,2]
[362956786,1748534965139,-430.0,0.00019726,2]
[362956787,1748534965168,-430.0,0.00019726,2]
[362956788,1748534965194,-430.0,0.00019726,2]
[362956789,1748534965225,-188.20027576,0.00019726,2]
[362956790,1748534965250,-430.0,0.00019726,2]
[362956791,1748534965278,-500.0,0.00019735,2]
[362956792,1748534965306,-500.0,0.00019735,2]
[362956793,1748534965333,-395.65056075,0.00019735,2]
[362956799,1748534987383,273.989715,0.00013699,2]
[362956867,1748535033065,-500.56076033,0.00019173,2]
[362956868,1748535033076,-430.0,0.00019178,2]
[362956869,1748535033086,-430.0,0.00019452,2]
[362956870,1748535033098,-430.0,0.00019726,2]
[362956871,1748535033108,-106.91149617,0.00019735,2]
[362956872,1748535033118,-300.0,0.00019998,2]
[362956873,1748535033129,-159.86,0.00019999,2]
[362956874,1748535033139,-408.48,0.00019999,2]
[362956875,1748535033149,-2443.44,0.00019999,2]
[362956876,1748535033158,-376.99,0.0002,2]
[362956878,1748535033168,-430.0,0.0002,2]
[362956880,1748535033178,-430.0,0.0002,2]
[362956881,1748535033188,-430.0,0.0002,2]
[362956882,1748535033198,-160.0,0.0002008,2]
[362956883,1748535033208,-423.31762986,0.00020177,2]
[362956884,1748535033217,-160.0,0.00020178,2]
[362956885,1748535033227,-212.70147903,0.00020178,2]
[362956886,1748535033236,-842.5625,0.00020178,2]
[362956887,1748535033246,-273.989715,0.00020187,2]
[362956888,1748535033255,-2443.44,0.00020273,2]
[362956889,1748535033264,-430.0,0.00020273,2]
[362956890,1748535033274,-370.9535,0.00020273,2]
[362956891,1748535033283,-430.0,0.00020273,2]
[362956892,1748535033292,-2443.44,0.00020547,2]
[362956893,1748535033302,-430.0,0.00020547,2]
[362956894,1748535033311,-430.0,0.00020547,2]
[362956895,1748535033320,-188.787,0.00020568,2]
[362956896,1748535033330,-2443.44,0.00020821,2]
[362956897,1748535033339,-430.0,0.00020821,2]
[362956898,1748535033350,-430.0,0.00020821,2]
[362956899,1748535033360,-864.94250018,0.000209,4]
[362956900,1748535033370,-500.0,0.00020999,2]
[362956901,1748535033380,-5897.19525833,0.00021,7]
[362956902,1748535033389,-864.94250002,0.00021038,4]
[362956903,1748535033399,-2443.44,0.00021095,2]
[362956904,1748535033409,-430.0,0.00021095,2]
[362956905,1748535033419,-430.0,0.00021095,2]
[362956906,1748535033428,-500.0,0.00021164,2]
[362956907,1748535033438,-864.94250002,0.00021176,4]
[362956908,1748535033447,-864.94250002,0.00021314,5]
[362956909,1748535033457,-2443.44,0.00021369,2]
[362956910,1748535033466,-430.0,0.00021369,2]
[362956911,1748535033475,-430.0,0.00021369,2]
[362956912,1748535033484,-864.94250002,0.00021452,5]
[362956913,1748535033494,-864.94250002,0.0002159,5]
[362956914,1748535033503,-2443.44,0.00021643,2]
[362956915,1748535033512,-430.0,0.00021643,2]
[362956916,1748535033521,-430.0,0.00021643,2]
[362956917,1748535033531,-864.94250002,0.00021728,5]
[362956918,1748535033540,-864.94250002,0.00021866,6]
[362956919,1748535033550,-170.06088804,0.000219,2]
[362956920,1748535033561,-500.0,0.00021917,2]
[362956921,1748535033571,-500.0,0.00021917,2]
[362956922,1748535033580,-2443.44,0.00021917,2]
[362956923,1748535033590,-196.28,0.00021917,2]
[362956924,1748535033602,-430.0,0.00021917,2]
[362956925,1748535033612,-500.0,0.00021918,2]
[362956926,1748535033621,-500.0,0.00021918,2]
[362956927,1748535033631,-500.0,0.00021918,2]
[362956928,1748535033641,-500.0,0.00021918,2]
[362956929,1748535033651,-500.0,0.00021918,2]
[362956930,1748535033660,-500.0,0.00021918,2]
[362956931,1748535033670,-500.0,0.00021918,2]
[362956932,1748535033682,-500.0,0.00021918,2]
[362956933,1748535033692,-500.0,0.00021918,2]
[362956934,1748535033701,-500.0,0.00021918,2]
[362956935,1748535033710,-500.0,0.00021918,2]
[362956936,1748535033719,-500.0,0.00021918,2]
[362956937,1748535033730,-500.0,0.00021918,2]
[362956938,1748535033739,-500.0,0.00021918,2]
[362956939,1748535033749,-500.0,0.00021918,2]
[362956940,1748535033759,-500.0,0.00021918,2]
[362956941,1748535033770,-500.0,0.00021918,2]
[362956942,1748535033780,-500.0,0.00021918,2]
[362956943,1748535033789,-500.0,0.00021918,2]
[362956944,1748535033799,-500.0,0.00021918,2]
[362956945,1748535033808,-500.0,0.00021918,2]
[362956946,1748535033818,-500.0,0.00021918,2]
[362956947,1748535033827,-500.0,0.00021918,2]
[362956948,1748535033837,-500.0,0.00021918,2]
[362956949,1748535033847,-500.0,0.00021918,2]
[362956950,1748535033857,-500.0,0.00021918,2]
[362956951,1748535033866,-500.0,0.00021918,2]
[362956952,1748535033876,-500.0,0.00021918,2]
[362956953,1748535033886,-500.0,0.00021918,2]
[362956954,1748535033907,-500.0,0.00021918,2]
[362956955,1748535033917,-500.0,0.00021918,2]
[362956956,1748535034102,-500.0,0.00021918,2]
[362956957,1748535034113,-500.0,0.00021918,2]
[362956958,1748535034123,-500.0,0.00021918,2]
[362956959,1748535034133,-500.0,0.00021918,2]
[362956960,1748535034143,-500.0,0.00021918,2]
[362956961,1748535034153,-511.55613078,0.00021918,2]
[362956962,1748535034162,-500.0,0.00021918,2]
[362956963,1748535034172,-500.0,0.00021918,2]
[362956964,1748535034183,-500.0,0.00021918,2]
[362956965,1748535034193,-500.0,0.00021918,2]
[362956966,1748535034202,-500.0,0.00021918,2]
[362956967,1748535034212,-500.0,0.00021918,2]
[362956968,1748535034221,-500.0,0.00021918,2]
[362956969,1748535034230,-500.0,0.00021918,2]
[362956970,1748535034240,-500.0,0.00021918,2]
[362956971,1748535034249,-500.0,0.00021918,2]
[362956972,1748535034258,-500.0,0.00021918,2]
[362956973,1748535034268,-500.0,0.00021918,2]
[362956974,1748535034278,-500.0,0.00021918,2]
[362956975,1748535034287,-500.0,0.00021918,2]
[362956976,1748535034296,-500.0,0.00021918,2]
[362956977,1748535034306,-500.0,0.00021918,2]
[362956978,1748535034316,-500.0,0.00021918,2]
[362956979,1748535034326,-500.0,0.00021918,2]
[362956980,1748535034335,-500.0,0.00021918,2]
[362956981,1748535034346,-400.0,0.00021918,2]
[362956982,1748535034357,-500.0,0.00021918,2]
[362956983,1748535034367,-500.0,0.00021918,2]
[362956984,1748535034377,-500.0,0.00021918,2]
[362956985,1748535034387,-500.0,0.00021918,2]
[362956986,1748535034396,-500.0,0.00021918,2]
[362956987,1748535034406,-500.0,0.00021918,2]
[362956988,1748535034416,-500.0,0.00021918,2]
[362956989,1748535034426,-500.0,0.00021918,2]
[362956990,1748535034435,-500.0,0.00021918,2]
[362956991,1748535034444,-500.0,0.00021918,2]
[362956992,1748535034453,-500.0,0.00021973,2]
[362956993,1748535034463,-507.69,0.0002199,10]
[362956994,1748535034472,-423.08,0.0002199,10]
[362956995,1748535034482,-500.0,0.00021999,2]
[362956996,1748535034491,-500.0,0.00021999,2]
[362956997,1748535034500,-469.76141476,0.00021999,2]
[362956998,1748535034510,-500.0,0.00021999,2]
[362956999,1748535034519,-361.93,0.00022,7]
[362957000,1748535034529,-893.83,0.00022,7]
[362957001,1748535034538,-39088.24,0.00022,7]
[362957002,1748535034548,-6678.7,0.00022,2]
[362957003,1748535034558,-864.94250002,0.00022003,6]
[362957004,1748535034567,-864.94250002,0.00022141,6]
[362957005,1748535034577,-2443.44,0.00022191,2]
[362957006,1748535034587,-430.0,0.00022191,2]
[362957007,1748535034598,-864.94250002,0.00022279,6]
[362957008,1748535034608,-864.94250002,0.00022417,7]
[362957009,1748535034617,-2443.44,0.00022465,2]
[362957010,1748535034627,-430.0,0.00022465,2]
[362957011,1748535034637,-864.94250002,0.00022555,7]
[362957012,1748535034646,-864.94250002,0.00022693,7]
[362957013,1748535034655,-2443.44,0.00022739,2]
[362957014,1748535034665,-430.0,0.00022739,2]
[362957015,1748535034675,-170.06088802,0.00022894,2]
[362957016,1748535034685,-177.0,0.00023,7]
[362957017,1748535034695,-2443.44,0.00023013,2]
[362957018,1748535034705,-430.0,0.00023013,2]
[362957019,1748535034714,-2443.44,0.00023287,2]
[362957020,1748535034724,-390.87884883,0.00023287,2]
[362957021,1748535034735,-500.0,0.00023356,2]
[362957022,1748535034744,-153.0,0.0002337,2]
[362957023,1748535034753,-153.0,0.0002337,2]
[362957024,1748535034762,-893.83,0.000234,7]
[362957025,1748535034773,-39088.24,0.000234,7]
[362957026,1748535034782,-207.4,0.00023454,2]